bitfinex/quotes_BTCUSD_20240605
["timestamp","ask_amount","ask_price","bid_price","bid_amount"]
[1717626250397,0.09679082,71139.0,71138.0,0.51804855]
[1717626251492,0.40817427,71139.0,71138.0,0.51804855]
[1717626252147,0.40817679,71139.0,71138.0,0.51804855]
[1717626252949,0.49239377,71139.0,71138.0,0.51804855]
[1717626253932,0.40817679,71139.0,71138.0,0.51804855]
[1717626258347,0.49239377,71139.0,71138.0,0.51804855]
[1717626262221,0.40817679,71139.0,71138.0,0.51804855]
[1717626262631,0.49239377,71139.0,71138.0,0.51804855]
[1717626262811,0.40817679,71139.0,71138.0,0.51804855]
[1717626264378,0.34007679,71139.0,71138.0,0.51804855]
[1717626264585,0.09679082,71139.0,71138.0,0.51804855]
[1717626270948,0.40817588,71139.0,71138.0,0.51804855]
[1717626275451,0.40817588,71139.0,71138.0,0.27244855]
[1717626275829,0.40817588,71139.0,71138.0,0.22567559]
[1717626275830,0.87104597,71139.0,71138.0,0.22567559]
[1717626276060,0.78684488,71139.0,71138.0,0.22567559]
[1717626276444,0.78684488,71139.0,71138.0,0.100946]
[1717626278255,0.87102932,71139.0,71138.0,0.100946]
[1717626278684,0.87102932,71139.0,71138.0,0.12351356]
[1717626279551,0.87102932,71139.0,71138.0,0.24824315]
[1717626282412,0.78684488,71139.0,71138.0,0.24824315]
[1717626284114,0.89204334,71139.0,71138.0,0.24824315]
[1717626284996,0.73604334,71139.0,71138.0,0.24824315]
[1717626285615,0.63084488,71139.0,71138.0,0.24824315]
[1717626285950,0.73604354,71139.0,71138.0,0.24824315]
[1717626286131,0.63084488,71139.0,71138.0,0.24824315]
[1717626286344,0.73603925,71139.0,71138.0,0.24824315]
[1717626287030,0.63084488,71139.0,71138.0,0.24824315]
[1717626287235,0.65393925,71139.0,71138.0,0.24824315]
[1717626287449,0.54874488,71139.0,71138.0,0.24824315]
[1717626287852,0.63290477,71139.0,71138.0,0.24824315]
[1717626288484,0.54874488,71139.0,71138.0,0.24824315]
[1717626289516,0.65393925,71139.0,71138.0,0.24824315]
[1717626289758,0.54874488,71139.0,71138.0,0.24824315]
[1717626290319,0.65393925,71139.0,71138.0,0.24824315]
[1717626290629,0.65393925,71139.0,71138.0,0.12351356]
[1717626290845,0.54874488,71139.0,71138.0,0.24824315]
[1717626291777,0.65393925,71139.0,71138.0,0.24824315]
[1717626291982,0.54874488,71139.0,71138.0,0.24824315]
[1717626292194,0.54874488,71139.0,71138.0,0.23711289]
[1717626292195,0.65394191,71139.0,71138.0,0.23711289]
[1717626292402,0.54874488,71139.0,71138.0,0.24824315]
[1717626293057,0.65394213,71139.0,71138.0,0.24824315]
[1717626293299,0.54874488,71139.0,71138.0,0.24824315]
[1717626293766,0.54874488,71139.0,71138.0,0.12351356]
[1717626294101,0.54874488,71139.0,71138.0,0.24824315]
[1717626294237,0.65393478,71139.0,71138.0,0.24824315]
[1717626294655,0.54874488,71139.0,71138.0,0.24824315]
[1717626296509,0.65393119,71139.0,71138.0,0.24824315]
[1717626298581,0.54874488,71139.0,71138.0,0.24824315]
[1717626300510,0.54874488,71139.0,71138.0,0.47644315]
[1717626300511,0.34007588,71139.0,71138.0,0.47644315]
[1717626300729,0.40817588,71139.0,71138.0,0.47644315]
[1717626300923,0.49232431,71139.0,71138.0,0.47644315]
[1717626301172,0.40817588,71139.0,71138.0,0.47644315]
[1717626302713,0.09679082,71139.0,71138.0,0.47644315]
[1717626303097,0.40818046,71139.0,71138.0,0.47644315]
[1717626303317,0.09679082,71139.0,71138.0,0.47644315]
[1717626304152,0.40818046,71139.0,71138.0,0.47644315]
[1717626306170,0.09679082,71139.0,71138.0,0.47644315]
[1717626308450,0.09683082,71139.0,71138.0,0.47644315]
[1717626308830,0.40821985,71139.0,71138.0,0.47644315]
[1717626309541,0.09683082,71139.0,71138.0,0.47644315]
[1717626312308,0.40821988,71139.0,71138.0,0.47644315]
[1717626312698,0.09683082,71139.0,71138.0,0.47644315]
[1717626313771,0.40821991,71139.0,71138.0,0.47644315]
[1717626313976,0.49237052,71139.0,71138.0,0.47644315]
[1717626315076,0.40821991,71139.0,71138.0,0.47644315]
[1717626315276,0.49237052,71139.0,71138.0,0.47644315]
[1717626316042,0.40821991,71139.0,71138.0,0.47644315]
[1717626316295,0.49237052,71139.0,71138.0,0.47644315]
[1717626316467,0.40821991,71139.0,71138.0,0.47644315]
[1717626316911,0.49237052,71139.0,71138.0,0.47644315]
[1717626317731,0.49237052,71139.0,71138.0,0.32364315]
[1717626320943,0.40821991,71139.0,71138.0,0.24824315]
[1717626321562,0.49237972,71139.0,71138.0,0.24824315]
[1717626321937,0.40821991,71139.0,71138.0,0.24824315]
[1717626329772,0.40822925,71139.0,71138.0,0.24824315]
[1717626331269,0.51343011,71139.0,71138.0,0.24824315]
[1717626333824,0.51343011,71139.0,71138.0,0.12351356]
[1717626334037,0.51343011,71139.0,71138.0,0.23711289]
[1717626334260,0.51343011,71139.0,71138.0,0.24824315]
[1717626334491,0.51343011,71139.0,71138.0,0.23711289]
[1717626335547,0.51343011,71139.0,71138.0,0.12351356]
[1717626335750,0.65399911,71139.0,71138.0,0.12351356]
[1717626336635,0.65399911,71139.0,71138.0,0.24824315]
[1717626336850,0.54879825,71139.0,71138.0,0.23711289]
[1717626337261,0.54879825,71139.0,71138.0,0.24824315]
[1717626340761,0.54879496,71139.0,71138.0,0.24824315]
[1717626342813,0.54879424,71139.0,71138.0,0.24824315]
[1717626344059,0.54879424,71139.0,71138.0,0.12351356]
[1717626344913,0.65401176,71139.0,71138.0,0.12351356]
[1717626346103,0.65401176,71139.0,71138.0,0.23711289]
[1717626346585,0.65401176,71139.0,71138.0,0.24824315]
[1717626346987,0.54879424,71139.0,71138.0,0.24824315]
[1717626347192,0.65401176,71139.0,71138.0,0.12351356]
[1717626347424,0.54879424,71139.0,71138.0,0.12351356]
[1717626347785,0.54879424,71139.0,71138.0,0.24824315]
[1717626348276,0.54879424,71139.0,71138.0,0.12351356]
[1717626348485,0.65401176,71139.0,71138.0,0.12351356]
[1717626348912,0.65401176,71139.0,71138.0,0.23711289]
[1717626349266,0.65401176,71139.0,71138.0,0.12351356]
[1717626349669,0.65401176,71139.0,71138.0,0.24824315]
[1717626350296,0.65401176,71139.0,71138.0,0.12351356]
[1717626350655,0.65401176,71139.0,71138.0,0.24824315]
[1717626351940,0.65401176,71139.0,71138.0,0.12351356]
[1717626353382,0.65403197,71139.0,71138.0,0.12351356]
[1717626353741,0.65403197,71139.0,71138.0,0.24824315]
[1717626356655,0.65403197,71139.0,71138.0,0.12351356]
[1717626357279,0.65403356,71139.0,71138.0,0.12351356]
[1717626357483,0.65403356,71139.0,71138.0,0.24824315]
[1717626357691,0.54879971,71139.0,71138.0,0.24824315]
[1717626362268,0.54879971,71139.0,71138.0,0.12464382]
[1717626362478,0.54879971,71139.0,71138.0,0.24824315]
[1717626370130,0.54879971,71139.0,71138.0,0.23711289]
[1717626370557,0.54879971,71139.0,71138.0,0.12351356]
[1717626370703,0.54879971,71139.0,71138.0,0.23711289]
[1717626372067,0.54879971,71139.0,71138.0,0.12351356]
[1717626374504,0.54879971,71139.0,71138.0,0.23711289]
[1717626375452,0.54879971,71139.0,71138.0,0.12351356]
[1717626377162,0.54881109,71139.0,71138.0,0.12351356]
[1717626379407,0.54881109,71139.0,71138.0,0.23711289]
[1717626379903,0.54881109,71139.0,71138.0,0.24824315]
[1717626381585,0.54880646,71139.0,71138.0,0.24824315]
[1717626383509,0.54880646,71139.0,71138.0,0.24631597]
[1717626383731,0.54880419,71139.0,71138.0,0.24631597]
[1717626384384,0.54880419,71139.0,71138.0,0.12158638]
[1717626384649,0.54880419,71139.0,71138.0,0.23518571]
[1717626384856,0.54880419,71139.0,71138.0,0.24631597]
[1717626386744,0.54880419,71139.0,71138.0,0.14631597]
[1717626386912,0.54880419,71139.0,71138.0,0.24631597]
[1717626389228,0.54880419,71139.0,71138.0,0.02158638]
[1717626389487,0.54880419,71139.0,71138.0,0.12158638]
[1717626392750,0.54880419,71139.0,71138.0,0.24631597]
[1717626394595,0.54880544,71139.0,71138.0,0.24631597]
[1717626397206,0.54880544,71139.0,71138.0,0.12158638]
[1717626397564,0.54880544,71139.0,71138.0,0.24631597]
[1717626402740,0.140581,71133.0,71131.0,0.102]
[1717626403034,0.40823644,71139.0,71131.0,0.002]
[1717626403035,1.11354367,71132.0,71131.0,0.002]
[1717626403238,1.13461226,71132.0,71131.0,0.002]
[1717626403469,1.31043629,71132.0,71131.0,0.002]
[1717626403682,1.10216816,71132.0,71131.0,0.002]
[1717626404103,1.50960401,71132.0,71131.0,0.002]
[1717626404316,1.38333516,71132.0,71131.0,0.002]
[1717626405521,1.10216816,71132.0,71131.0,0.002]
[1717626405922,1.13016816,71132.0,71131.0,0.002]
[1717626406128,1.11616816,71132.0,71131.0,0.002]
[1717626406323,1.10216816,71132.0,71131.0,0.002]
[1717626406728,1.11616816,71132.0,71131.0,0.002]
[1717626407718,1.13016816,71132.0,71131.0,0.002]
[1717626408153,1.10216816,71132.0,71131.0,0.002]
[1717626408574,1.13016816,71132.0,71131.0,0.002]
[1717626409135,1.11616816,71132.0,71131.0,0.002]
[1717626409460,0.68400116,71132.0,71131.0,0.002]
[1717626409690,0.69800116,71132.0,71131.0,0.002]
[1717626409891,0.8031629,71132.0,71131.0,0.002]
[1717626410803,0.68400116,71132.0,71131.0,0.002]
[1717626411225,0.80314236,71132.0,71131.0,0.002]
[1717626411405,0.78914236,71132.0,71131.0,0.002]
[1717626411833,0.80314181,71132.0,71131.0,0.002]
[1717626412184,0.78914181,71132.0,71131.0,0.002]
[1717626412396,0.80314181,71132.0,71131.0,0.002]
[1717626412632,1.08434446,71132.0,71131.0,0.002]
[1717626412830,1.07034446,71132.0,71131.0,0.002]
[1717626413048,0.96520951,71132.0,71131.0,0.002]
[1717626413248,0.97920951,71132.0,71131.0,0.002]
[1717626413693,0.96520951,71132.0,71131.0,0.002]
[1717626414311,1.08432711,71132.0,71131.0,0.002]
[1717626414768,0.97920951,71132.0,71131.0,0.002]
[1717626415313,1.08432063,71132.0,71131.0,0.002]
[1717626415654,1.23962063,71132.0,71131.0,0.002]
[1717626417666,1.25614822,71132.0,71131.0,0.002]
[1717626417868,1.1510371,71132.0,71131.0,0.002]
[1717626418277,0.9957371,71132.0,71131.0,0.002]
[1717626425685,1.07980624,71132.0,71131.0,0.002]
[1717626425887,0.9957371,71132.0,71131.0,0.002]
[1717626426329,1.07980389,71132.0,71131.0,0.002]
[1717626426527,0.9957371,71132.0,71131.0,0.002]
[1717626426708,1.0798046,71132.0,71131.0,0.002]
[1717626427121,1.07980485,71132.0,71131.0,0.002]
[1717626427565,0.9957371,71132.0,71131.0,0.002]
[1717626427958,0.68427646,71132.0,71131.0,0.002]
[1717626428294,0.99573878,71132.0,71131.0,0.002]
[1717626428505,1.10082353,71132.0,71131.0,0.002]
[1717626428709,0.99574496,71132.0,71131.0,0.002]
[1717626429501,1.10082939,71132.0,71131.0,0.002]
[1717626429902,0.99574496,71132.0,71131.0,0.002]
[1717626431064,1.10082939,71132.0,71131.0,0.002]
[1717626431933,1.17380613,71132.0,71131.0,0.002]
[1717626432141,1.10082939,71132.0,71131.0,0.002]
[1717626432662,1.17278162,71132.0,71131.0,0.002]
[1717626433726,1.09578162,71132.0,71131.0,0.002]
[1717626433962,0.91874496,71132.0,71131.0,0.002]
[1717626434427,0.99450421,71132.0,71131.0,0.002]
[1717626434636,1.09958864,71132.0,71131.0,0.002]
[1717626435047,1.03148864,71132.0,71131.0,0.002]
[1717626435252,1.09958864,71132.0,71131.0,0.002]
[1717626435462,0.91874496,71132.0,71131.0,0.002]
[1717626436904,1.00288428,71132.0,71131.0,0.002]
[1717626437724,0.91874496,71132.0,71131.0,0.002]
[1717626440352,0.63757796,71132.0,71131.0,0.002]
[1717626441380,0.74266239,71132.0,71131.0,0.002]
[1717626441586,0.63757796,71132.0,71131.0,0.002]
[1717626441986,0.74266239,71132.0,71131.0,0.002]
[1717626442391,0.74266239,71132.0,71131.0,0.002946]
[1717626442949,0.63757796,71132.0,71131.0,0.002946]
[1717626443663,0.63756782,71132.0,71131.0,0.002946]
[1717626445116,1.34432075,71132.0,71131.0,0.002946]
[1717626445319,1.87296095,71132.0,71131.0,0.002946]
[1717626445731,2.65006712,71132.0,71131.0,0.002946]
[1717626445940,2.56366614,71132.0,71131.0,0.002946]
[1717626446338,2.47048035,71132.0,71131.0,0.002946]
[1717626446691,2.45648035,71132.0,71131.0,0.002946]
[1717626446891,2.56371263,71132.0,71131.0,0.002946]
[1717626447066,2.47048035,71132.0,71131.0,0.002946]
[1717626447501,2.45648035,71132.0,71131.0,0.002946]
[1717626447708,2.45648766,71132.0,71131.0,0.002946]
[1717626447937,2.44248766,71132.0,71131.0,0.002946]
[1717626448331,2.54288833,71132.0,71131.0,0.002946]
[1717626448748,2.54358997,71132.0,71131.0,0.002946]
[1717626448978,2.56658997,71132.0,71131.0,0.002946]
[1717626449621,2.84775697,71132.0,71131.0,0.002946]
[1717626449827,2.86175697,71132.0,71131.0,0.002946]
[1717626450033,3.09703906,71132.0,71131.0,0.002946]
[1717626450487,2.95482001,71132.0,71131.0,0.002946]
[1717626450910,2.94082001,71132.0,71131.0,0.002946]
[1717626451299,2.95482001,71132.0,71131.0,0.002946]
[1717626451701,3.09692287,71132.0,71131.0,0.002946]
[1717626451936,2.95482001,71132.0,71131.0,0.002946]
[1717626452135,2.94082001,71132.0,71131.0,0.002946]
[1717626452340,3.08290346,71132.0,71131.0,0.002946]
[1717626452652,3.04421298,71132.0,71131.0,0.002946]
[1717626452858,3.01621298,71132.0,71131.0,0.002946]
[1717626453035,2.8824751,71132.0,71131.0,0.002946]
[1717626453228,0.78935767,71128.0,71127.0,0.009493]
[1717626453447,3.03019631,71128.0,71127.0,0.009493]
[1717626453653,3.62520152,71128.0,71127.0,0.009493]
[1717626453863,3.68391872,71128.0,71127.0,0.009493]
[1717626454071,3.53880085,71128.0,71127.0,0.009493]
[1717626454289,3.31178381,71128.0,71127.0,0.009493]
[1717626454647,3.37988381,71128.0,71127.0,0.009493]
[1717626456587,3.39388381,71128.0,71127.0,0.009493]
[1717626457220,3.37988381,71128.0,71127.0,0.009493]
[1717626457430,3.61065962,71128.0,71127.0,0.009493]
[1717626457645,3.55300168,71128.0,71127.0,0.009493]
[1717626458207,3.40788381,71128.0,71127.0,0.009493]
[1717626458420,2.80650081,71128.0,71127.0,0.243493]
[1717626458627,2.52531781,71128.0,71127.0,0.243493]
[1717626458837,1.92295554,71128.0,71127.0,0.243493]
[1717626459103,1.92295554,71128.0,71127.0,0.36822259]
[1717626459104,1.18695554,71128.0,71127.0,0.36822259]
[1717626459312,1.11404729,71128.0,71127.0,0.36822259]
[1717626459535,0.802591,71128.0,71127.0,0.36822259]
[1717626459764,0.85170471,71128.0,71127.0,0.36822259]
[1717626459975,0.83770471,71128.0,71127.0,0.41504485]
[1717626460188,0.85170471,71128.0,71127.0,0.41504485]
[1717626460613,0.85170429,71128.0,71127.0,0.41504485]
[1717626461111,0.86570429,71128.0,71127.0,0.41504485]
[1717626462127,0.802591,71128.0,71127.0,0.41504485]
[1717626463956,0.93380217,71128.0,71127.0,0.41504485]
[1717626465010,0.79321117,71128.0,71127.0,0.41504485]
[1717626466005,0.7301,71128.0,71127.0,0.41504485]
[1717626466388,0.79321117,71128.0,71127.0,0.36822259]
[1717626466589,0.870691,71128.0,71127.0,0.35709233]
[1717626466892,1.18215219,71128.0,71127.0,0.243493]
[1717626467785,0.63230042,71128.0,71127.0,0.243493]
[1717626469212,0.63230042,71128.0,71127.0,0.35709233]
[1717626469399,0.63230042,71128.0,71127.0,0.36822259]
[1717626469600,0.63230042,71128.0,71127.0,0.35709233]
[1717626469813,0.63230042,71128.0,71127.0,0.36822259]
[1717626470012,0.63230042,71128.0,71127.0,0.35709233]
[1717626470351,0.63230042,71128.0,71127.0,0.36822259]
[1717626470564,0.63230042,71128.0,71127.0,0.35709233]
[1717626470792,0.63230042,71128.0,71127.0,0.243493]
[1717626471409,0.63230042,71128.0,71127.0,0.35709233]
[1717626471608,0.63230042,71128.0,71127.0,0.35822259]
[1717626471857,0.5481565,71128.0,71127.0,0.36822259]
[1717626472060,0.6323084,71128.0,71127.0,0.35822259]
[1717626472269,0.6323084,71128.0,71127.0,0.243493]
[1717626472470,0.4800565,71128.0,71127.0,0.35709233]
[1717626472669,0.62105818,71128.0,71127.0,0.35709233]
[1717626473001,0.62105818,71128.0,71127.0,0.35822259]
[1717626473002,0.63230854,71128.0,71127.0,0.35822259]
[1717626473229,0.63710942,71128.0,71127.0,0.35709233]
[1717626473429,0.70520942,71128.0,71127.0,0.36822259]
[1717626473637,0.70520942,71128.0,71127.0,0.243493]
[1717626473833,0.62105738,71128.0,71127.0,0.35709233]
[1717626474042,0.70521015,71128.0,71127.0,0.35822259]
[1717626474247,0.70521015,71128.0,71127.0,0.36822259]
[1717626474453,0.62105738,71128.0,71127.0,0.243493]
[1717626476015,0.72624726,71128.0,71127.0,0.243493]
[1717626479115,1.00743026,71128.0,71127.0,0.009493]
[1717626479340,1.15184919,71128.0,71127.0,0.009493]
[1717626479742,1.04665931,71128.0,71127.0,0.009493]
[1717626479944,1.03265931,71128.0,71127.0,0.009493]
[1717626480350,0.76547631,71128.0,71127.0,0.009493]
[1717626480775,0.75147631,71128.0,71127.0,0.009493]
[1717626480996,0.73747631,71128.0,71127.0,0.009493]
[1717626481208,0.76547631,71128.0,71127.0,0.009493]
[1717626481469,1.04665931,71128.0,71127.0,0.009493]
[1717626482404,1.06065931,71128.0,71127.0,0.009493]
[1717626483581,1.06069622,71128.0,71127.0,0.009493]
[1717626483985,0.99259622,71128.0,71127.0,0.009493]
[1717626484451,1.06069622,71128.0,71127.0,0.009493]
[1717626485608,0.99259622,71128.0,71127.0,0.009493]
[1717626485809,1.06069622,71128.0,71127.0,0.009493]
[1717626486861,1.06069457,71128.0,71127.0,0.009493]
[1717626492652,0.77951157,71128.0,71127.0,0.13422259]
[1717626493182,0.77951157,71128.0,71127.0,0.009493]
[1717626494677,0.77951157,71128.0,71127.0,0.13422259]
[1717626494898,0.56699264,71128.0,71127.0,0.37112259]
[1717626495111,0.7403131,71128.0,71127.0,0.37112259]
[1717626495319,0.63509264,71128.0,71127.0,0.37112259]
[1717626495960,0.63509264,71128.0,71127.0,0.246393]
[1717626496387,0.63509264,71128.0,71127.0,0.29350526]
[1717626496803,0.63509264,71128.0,71127.0,0.246393]
[1717626498815,0.250691,71128.0,71127.0,0.246393]
[1717626499025,0.63507686,71128.0,71127.0,0.246393]
[1717626505141,1.30587879,71128.0,71127.0,0.009493]
[1717626505786,1.14317879,71128.0,71127.0,0.009493]
[1717626506036,1.1870178,71128.0,71127.0,0.009493]
[1717626506247,1.06067879,71128.0,71127.0,0.009493]
[1717626506946,1.08253914,71128.0,71127.0,0.009493]
[1717626508631,1.20888006,71128.0,71127.0,0.009493]
[1717626509084,1.08253914,71128.0,71127.0,0.009493]
[1717626509602,1.20888006,71128.0,71127.0,0.009493]
[1717626510389,1.08253914,71128.0,71127.0,0.009493]
[1717626511182,1.06067879,71128.0,71127.0,0.009493]
[1717626511381,1.18701971,71128.0,71127.0,0.009493]
[1717626511590,1.08253964,71128.0,71127.0,0.009493]
[1717626512794,1.20888048,71128.0,71127.0,0.009493]
[1717626513203,1.08253956,71128.0,71127.0,0.009493]
[1717626513535,1.20888048,71128.0,71127.0,0.009493]
[1717626514094,1.08253956,71128.0,71127.0,0.009493]
[1717626514303,1.20888048,71128.0,71127.0,0.009493]
[1717626516227,1.20893298,71128.0,71127.0,0.009493]
[1717626516439,1.08255012,71128.0,71127.0,0.009493]
[1717626516635,1.20893743,71128.0,71127.0,0.009493]
[1717626517372,1.08255012,71128.0,71127.0,0.009493]
[1717626518001,1.20894233,71128.0,71127.0,0.009493]
[1717626518452,1.08255012,71128.0,71127.0,0.009493]
[1717626518659,1.20894813,71128.0,71127.0,0.009493]
[1717626518862,1.08255012,71128.0,71127.0,0.009493]
[1717626519082,0.73326712,71128.0,71127.0,0.087493]
[1717626519290,0.92776867,71128.0,71127.0,0.087493]
[1717626520537,0.85966867,71128.0,71127.0,0.087493]
[1717626520962,0.92776867,71128.0,71127.0,0.087493]
[1717626521579,0.85966867,71128.0,71127.0,0.087493]
[1717626521785,0.92776867,71128.0,71127.0,0.21222259]
[1717626521990,0.80136712,71128.0,71127.0,0.21222259]
[1717626522200,0.77950635,71128.0,71127.0,0.21222259]
[1717626523052,0.63508742,71128.0,71127.0,0.25992485]
[1717626524198,0.56698742,71128.0,71127.0,0.25992485]
[1717626524554,0.63508742,71128.0,71127.0,0.25992485]
[1717626526651,0.63508742,71128.0,71127.0,0.42372485]
[1717626527707,0.54818097,71128.0,71127.0,0.42372485]
[1717626527999,0.56218097,71128.0,71127.0,0.29899526]
[1717626528651,0.53418097,71128.0,71127.0,0.37602259]
[1717626528852,0.54818097,71128.0,71127.0,0.37602259]
[1717626529277,0.53418097,71128.0,71127.0,0.37602259]
[1717626529490,0.52018097,71128.0,71127.0,0.37602259]
[1717626529718,0.53418097,71128.0,71127.0,0.37602259]
[1717626529942,0.54818097,71128.0,71127.0,0.37602259]
[1717626530164,0.54818097,71128.0,71127.0,0.42362485]
[1717626542583,0.54818097,71128.0,71127.0,0.37602259]
[1717626550581,0.54818097,71128.0,71127.0,0.251293]
[1717626551700,0.54818097,71128.0,71127.0,0.37602259]
[1717626552889,0.5481608,71128.0,71127.0,0.37602259]
[1717626554070,0.5481608,71128.0,71127.0,0.36489233]
[1717626554350,0.5481608,71128.0,71127.0,0.42362485]
[1717626555966,0.4800608,71128.0,71127.0,0.42362485]
[1717626556148,0.5481608,71128.0,71127.0,0.42362485]
[1717626556391,0.5481608,71128.0,71127.0,0.37602259]
[1717626557666,0.5481608,71128.0,71127.0,0.38112259]
[1717626557667,0.3394698,71128.0,71127.0,0.38112259]
[1717626557889,0.44480417,71128.0,71127.0,0.49112259]
[1717626558095,0.028,71128.0,71127.0,0.66429455]
[1717626558310,0.07012993,71128.0,71127.0,0.65429455]
[1717626558743,0.014,71128.0,71127.0,0.65429455]
[1717626559118,0.028,71128.0,71127.0,0.65429455]
[1717626559330,0.014,71128.0,71127.0,0.65429455]
[1717626559530,0.13130389,71129.0,71127.0,0.65429455]
[1717626559764,0.13130389,71129.0,71128.0,0.2738483]
[1717626559974,0.13130389,71129.0,71128.0,0.6116483]
[1717626560358,0.0681,71129.0,71128.0,0.6116483]
[1717626560660,0.13130389,71129.0,71128.0,0.6116483]
[1717626560892,0.0681,71129.0,71128.0,0.6116483]
[1717626561092,0.0741,71129.0,71128.0,0.6116483]
[1717626561622,0.006,71129.0,71128.0,0.6116483]
[1717626562229,0.04811679,71129.0,71128.0,0.6116483]
[1717626562445,0.05311793,71129.0,71128.0,0.6116483]
[1717626563039,0.04811793,71129.0,71128.0,0.6116483]
[1717626563240,0.012,71129.0,71128.0,0.6116483]
[1717626564883,0.012,71129.0,71128.0,0.6216483]
[1717626565733,0.012,71129.0,71128.0,0.7622393]
[1717626566873,0.000946,71131.0,71130.0,0.47531659]
[1717626567075,0.000946,71131.0,71130.0,0.71311659]
[1717626568867,0.000946,71131.0,71130.0,0.71311659]
[1717626569325,0.000946,71131.0,71130.0,1.13871052]
[1717626569521,0.000946,71131.0,71130.0,1.14071052]
[1717626569962,0.000946,71131.0,71130.0,1.34271052]
[1717626570162,0.000946,71131.0,71130.0,1.39182923]
[1717626570578,0.000946,71131.0,71130.0,1.54110423]
[1717626570783,0.000946,71131.0,71130.0,1.83261153]
[1717626570983,0.000946,71131.0,71130.0,2.03261153]
[1717626572975,0.000946,71131.0,71130.0,2.03061153]
[1717626573193,0.000946,71131.0,71130.0,2.02861153]
[1717626573400,0.001946,71131.0,71130.0,2.03361153]
[1717626573598,0.001946,71131.0,71130.0,2.02861153]
[1717626573800,0.000946,71131.0,71130.0,2.02861153]
[1717626574014,0.002946,71131.0,71130.0,1.75110423]
[1717626574172,0.002946,71131.0,71130.0,2.32378132]
[1717626574377,0.002946,71131.0,71130.0,2.42378132]
[1717626574579,0.001946,71131.0,71130.0,2.41678132]
[1717626574775,0.002946,71131.0,71130.0,2.13227923]
[1717626574991,0.002946,71131.0,71130.0,2.42376048]
[1717626576277,0.000946,71131.0,71130.0,2.34166048]
[1717626576482,0.000946,71131.0,71130.0,2.40976048]
[1717626576702,0.002946,71131.0,71130.0,2.43476048]
[1717626576898,0.002946,71131.0,71130.0,2.42176048]
[1717626576899,0.001946,71131.0,71130.0,2.42176048]
[1717626577318,0.001946,71131.0,71130.0,2.42276048]
[1717626577523,0.002946,71131.0,71130.0,2.43476048]
[1717626580492,0.002946,71131.0,71130.0,2.23476048]
[1717626580693,0.002946,71131.0,71130.0,2.43476048]
[1717626581150,0.002946,71131.0,71130.0,2.23476048]
[1717626581365,0.002946,71131.0,71130.0,2.43476048]
[1717626582015,0.002946,71131.0,71130.0,2.14327923]
[1717626582287,0.002946,71131.0,71130.0,2.43477094]
[1717626582491,0.002946,71131.0,71130.0,2.36667094]
[1717626582709,0.002946,71131.0,71130.0,2.43477094]
[1717626589927,0.002946,71131.0,71130.0,2.43477094]
[1717626591399,0.002946,71131.0,71130.0,2.44531066]
[1717626591973,0.002946,71131.0,71130.0,2.43477094]
[1717626592397,0.002946,71131.0,71130.0,2.44531066]
[1717626593121,0.002946,71131.0,71130.0,2.43477094]
[1717626597231,0.002946,71131.0,71130.0,2.23477094]
[1717626597668,0.002946,71131.0,71130.0,2.43477094]
[1717626599688,0.002946,71131.0,71130.0,2.23477094]
[1717626600271,0.002946,71131.0,71130.0,2.16667094]
[1717626600474,0.002946,71131.0,71130.0,1.44769594]
[1717626600688,0.002946,71131.0,71130.0,1.25652094]
[1717626600844,0.002946,71131.0,71130.0,0.83092701]
[1717626601050,0.229846,71131.0,71130.0,0.81792701]
[1717626601283,0.228846,71131.0,71130.0,0.2738483]
[1717626601501,0.297946,71131.0,71130.0,0.2868483]
[1717626601754,0.297946,71131.0,71130.0,0.112]
[1717626602167,0.437531,71131.0,71130.0,0.1]
[1717626602872,0.438531,71131.0,71130.0,0.11]
[1717626603502,0.48053302,71131.0,71130.0,0.11]
[1717626603987,0.297946,71131.0,71130.0,0.23472959]
[1717626604146,0.296946,71131.0,71130.0,0.27330615]
[1717626604348,0.296946,71131.0,71130.0,0.27830615]
[1717626604534,0.296946,71131.0,71130.0,0.27930615]
[1717626604728,0.296946,71131.0,71130.0,0.27830615]
[1717626604936,0.296946,71131.0,71130.0,0.27330615]
[1717626605135,0.310946,71131.0,71130.0,0.27430615]
[1717626605349,0.324946,71131.0,71130.0,0.27530615]
[1717626610008,0.324946,71131.0,71130.0,0.27625215]
[1717626626423,0.028946,71131.0,71130.0,0.27625215]
[1717626627183,0.261046,71131.0,71130.0,0.27625215]
[1717626631477,0.340246,71131.0,71130.0,0.27625215]
[1717626631678,0.340246,71131.0,71130.0,0.26512189]
[1717626631905,0.340246,71131.0,71130.0,0.15152256]
[1717626632085,0.480831,71131.0,71130.0,0.15152256]
[1717626632285,0.480831,71131.0,71130.0,0.102946]
[1717626632700,0.480831,71131.0,71130.0,0.22767559]
[1717626633323,0.340246,71131.0,71130.0,0.22767559]
[1717626636096,0.480831,71131.0,71130.0,0.22767559]
[1717626638887,0.272146,71131.0,71130.0,0.22767559]
[1717626639111,0.340246,71131.0,71130.0,0.26554665]
[1717626641989,0.340246,71131.0,71130.0,0.16554665]
[1717626642380,0.38225903,71131.0,71130.0,0.26554665]
[1717626642588,0.38232344,71131.0,71130.0,0.26554665]
[1717626643676,0.340246,71131.0,71130.0,0.26554665]
[1717626643807,0.176246,71131.0,71130.0,0.26554665]
[1717626644020,0.097046,71131.0,71130.0,0.26554665]
[1717626644247,0.16016216,71131.0,71130.0,0.26554665]
[1717626644752,0.16020853,71131.0,71130.0,0.26554665]
[1717626645153,0.40847756,71131.0,71130.0,0.26554665]
[1717626645847,0.34037756,71131.0,71130.0,0.26554665]
[1717626646052,0.40847756,71131.0,71130.0,0.26554665]
[1717626646438,0.49274726,71131.0,71130.0,0.26554665]
[1717626647483,0.65017756,71131.0,71130.0,0.26554665]
[1717626647892,0.65017756,71131.0,71130.0,0.25441639]
[1717626648821,0.65017756,71131.0,71130.0,0.26554665]
[1717626649034,0.65017756,71131.0,71130.0,0.25441639]
[1717626650075,0.65018565,71131.0,71130.0,0.25441639]
[1717626652726,0.65018565,71131.0,71130.0,0.26554665]
[1717626657094,0.65018565,71131.0,71130.0,0.25441639]
[1717626657519,0.65018565,71131.0,71130.0,0.26554665]
[1717626657940,0.77747065,71131.0,71130.0,0.25441639]
[1717626658614,0.77747065,71131.0,71130.0,0.26554665]
[1717626658817,0.77747065,71131.0,71130.0,0.16554665]
[1717626659026,0.77747539,71131.0,71130.0,0.26554665]
[1717626660466,0.62427539,71131.0,71130.0,0.26554665]
[1717626660672,0.34039039,71131.0,71130.0,0.26554665]
[1717626661024,0.34039039,71131.0,71130.0,0.50644665]
[1717626661227,0.42469112,71131.0,71130.0,0.50644665]